fUST/lending_fUST_20250312
["ID","MTS","AMOUNT","RATE_DAILY","PERIOD"]
[356007151,1741793455120,-500.0,0.00022465,2]
[356007152,1741793455129,-1062.19,0.00022465,2]
[356007153,1741793455138,-500.0,0.00022465,2]
[356007154,1741793455147,-646.75564394,0.00022465,2]
[356007155,1741793455158,-500.0,0.00022465,2]
[356007156,1741793455168,-500.0,0.00022465,2]
[356007157,1741793455178,-500.0,0.00022465,2]
[356007158,1741793455187,-500.0,0.00022465,2]
[356007159,1741793455199,-500.0,0.00022465,2]
[356007160,1741793455209,-597.21,0.00022465,2]
[356007161,1741793455218,-500.0,0.00022465,2]
[356007162,1741793455227,-500.0,0.00022465,2]
[356007163,1741793455240,-874.59,0.00022465,2]
[356007164,1741793455249,-639.77,0.00022465,2]
[356007165,1741793455259,-605.08,0.00022465,5]
[356007166,1741793455269,-500.0,0.00022465,2]
[356007167,1741793455279,-500.0,0.00022465,2]
[356007168,1741793455289,-445.71381202,0.00022465,2]
[356007169,1741793455299,-1294.83,0.00022465,2]
[356007170,1741793455308,-1330.17,0.00022465,2]
[356007171,1741793455317,-500.0,0.00022465,2]
[356007172,1741793455328,-556.49728153,0.00022465,2]
[356007173,1741793455338,-500.0,0.00022465,2]
[356007174,1741793455347,-500.0,0.00022465,2]
[356007175,1741793455357,-500.0,0.00022465,2]
[356007176,1741793455367,-500.0,0.00022465,2]
[356007177,1741793455376,-1279.74,0.00022465,2]
[356007178,1741793455386,-500.0,0.00022465,2]
[356007179,1741793455395,-503.57799636,0.00022465,2]
[356007180,1741793455404,-500.0,0.00022465,2]
[356007181,1741793455414,-500.0,0.00022465,2]
[356007182,1741793455423,-500.0,0.00022465,2]
[356007183,1741793455433,-500.0,0.00022465,2]
[356007184,1741793455443,-500.0,0.00022465,2]
[356007185,1741793455452,-500.0,0.00022465,2]
[356007186,1741793455462,-1722.61,0.00022465,2]
[356007187,1741793455471,-500.0,0.00022465,2]
[356007188,1741793455481,-500.0,0.00022465,2]
[356007189,1741793455491,-507.63,0.00022465,2]
[356007190,1741793455500,-527.04,0.00022465,2]
[356007191,1741793455509,-500.0,0.00022465,2]
[356007192,1741793455518,-324.02963386,0.00022465,2]
[356007193,1741793455527,-561.40885405,0.00022465,2]
[356007194,1741793455536,-500.0,0.00022465,2]
[356007195,1741793455546,-500.0,0.00022465,2]
[356007196,1741793455556,-500.0,0.00022465,2]
[356007197,1741793455566,-500.0,0.00022465,2]
[356007198,1741793455575,-500.0,0.00022465,2]
[356007199,1741793455585,-1063.33,0.00022465,2]
[356007200,1741793455595,-358.60827403,0.00022465,2]
[356007201,1741793455604,-517.89584402,0.00022465,2]
[356007202,1741793455614,-500.0,0.00022465,2]
[356007203,1741793455623,-500.0,0.00022465,2]
[356007204,1741793455633,-500.0,0.00022465,2]
[356007205,1741793455642,-500.0,0.00022465,2]
[356007206,1741793455652,-500.0,0.00022465,2]
[356007207,1741793455661,-500.0,0.00022465,2]
[356007208,1741793455671,-500.0,0.00022465,2]
[356007209,1741793455680,-500.0,0.00022465,2]
[356007210,1741793455690,-500.0,0.00022465,2]
[356007211,1741793455700,-698.39,0.00022465,2]
[356007212,1741793455709,-500.0,0.00022465,2]
[356007213,1741793455719,-500.0,0.00022465,2]
[356007214,1741793455729,-500.0,0.00022465,2]
[356007215,1741793455741,-500.0,0.00022465,2]
[356007216,1741793455751,-519.91580609,0.00022465,2]
[356007217,1741793455760,-500.0,0.00022465,2]
[356007218,1741793455770,-500.0,0.00022465,2]
[356007219,1741793455780,-500.0,0.00022465,2]
[356007220,1741793455790,-500.0,0.00022465,2]
[356007221,1741793455799,-1346.12,0.00022465,2]
[356007222,1741793455809,-500.0,0.00022465,2]
[356007223,1741793455819,-500.0,0.00022465,2]
[356007224,1741793455829,-500.0,0.00022465,2]
[356007225,1741793455838,-500.0,0.00022465,2]
[356007226,1741793455847,-500.0,0.00022465,2]
[356007227,1741793455857,-500.0,0.00022465,2]
[356007228,1741793455867,-500.0,0.00022465,2]
[356007229,1741793455877,-500.0,0.00022465,2]
[356007230,1741793455886,-500.0,0.00022465,2]
[356007231,1741793455896,-500.0,0.00022465,2]
[356007232,1741793455905,-500.0,0.00022465,2]
[356007233,1741793455915,-500.0,0.00022465,2]
[356007234,1741793455925,-500.0,0.00022465,2]
[356007235,1741793455934,-213.90072615,0.00022465,2]
[356007236,1741793455944,-380.99794679,0.00022465,2]
[356007237,1741793455953,-500.0,0.00022465,2]
[356007238,1741793455963,-1073.29,0.00022465,2]
[356007239,1741793455973,-500.0,0.00022465,2]
[356007240,1741793455983,-500.0,0.00022465,2]
[356007241,1741793455996,-500.0,0.00022465,2]
[356007242,1741793456006,-500.0,0.00022465,2]
[356007243,1741793456016,-500.0,0.00022465,2]
[356007244,1741793456025,-1976.23,0.00022465,2]
[356007245,1741793456035,-500.0,0.00022465,2]
[356007246,1741793456044,-585.62,0.00022465,2]
[356007247,1741793456054,-683.59,0.00022465,2]
[356007248,1741793456064,-398.05502889,0.00022465,2]
[356007249,1741793456073,-1143.79,0.00022465,2]
[356007250,1741793456083,-619.47092971,0.00022465,2]
[356007251,1741793456092,-550.04,0.00022465,2]
[356007252,1741793456102,-500.0,0.00022465,2]
[356007253,1741793456113,-574.47,0.00022465,2]
[356007254,1741793456129,-500.0,0.00022465,2]
[356007255,1741793456139,-500.0,0.00022465,2]
[356007256,1741793456148,-500.0,0.00022465,2]
[356007257,1741793456159,-500.0,0.00022465,2]
[356007258,1741793456169,-580.03060488,0.00022465,2]
[356007259,1741793456178,-630.03,0.00022465,2]
[356007260,1741793456188,-500.0,0.00022465,2]
[356007261,1741793456198,-500.0,0.00022465,2]
[356007262,1741793456208,-500.0,0.00022465,2]
[356007263,1741793456218,-500.0,0.00022465,2]
[356007264,1741793456241,-1237.12,0.00022465,2]
[356007265,1741793456251,-531.11093057,0.00022465,2]
[356007266,1741793456261,-533.65329777,0.00022465,2]
[356007267,1741793456271,-500.0,0.00022465,2]
[356007268,1741793456282,-500.0,0.00022465,2]
[356007269,1741793456292,-500.0,0.00022465,2]
[356007270,1741793456301,-500.0,0.00022465,2]
[356007271,1741793456454,-500.0,0.00022465,2]
[356007272,1741793456464,-500.0,0.00022465,2]
[356007273,1741793456473,-500.0,0.00022465,2]
[356007274,1741793456482,-500.0,0.00022465,2]
[356007275,1741793456496,-500.0,0.00022465,2]
[356007276,1741793456505,-500.0,0.00022465,2]
[356007277,1741793456515,-567.64,0.00022465,2]
[356007278,1741793456524,-500.0,0.00022465,2]
[356007279,1741793456534,-500.0,0.00022465,2]
[356007280,1741793456543,-500.0,0.00022465,2]
[356007281,1741793456552,-500.0,0.00022465,2]
[356007282,1741793456562,-500.0,0.00022465,2]
[356007283,1741793456571,-500.0,0.00022465,2]
[356007284,1741793456580,-500.0,0.00022465,2]
[356007285,1741793456589,-500.0,0.00022465,2]
[356007286,1741793456599,-2141.55,0.00022465,2]
[356007287,1741793456608,-500.0,0.00022465,2]
[356007288,1741793456618,-1204.72,0.00022465,2]
[356007289,1741793456628,-500.0,0.00022465,2]
[356007290,1741793456638,-594.82,0.00022465,2]
[356007291,1741793456648,-500.0,0.00022465,2]
[356007292,1741793456657,-500.0,0.00022465,2]
[356007293,1741793456667,-1495.98,0.00022465,2]
[356007294,1741793456676,-500.0,0.00022465,2]
[356007295,1741793456686,-500.0,0.00022465,2]
[356007296,1741793456695,-2086.04,0.00022465,2]
[356007297,1741793456705,-563.81168992,0.00022465,2]
[356007298,1741793456715,-500.0,0.00022465,2]
[356007299,1741793456725,-500.0,0.00022465,2]
[356007300,1741793456735,-500.0,0.00022465,2]
[356007301,1741793456747,-500.0,0.00022465,2]
[356007302,1741793456756,-500.0,0.00022465,2]
[356007303,1741793456766,-2327.1,0.00022465,2]
[356007304,1741793456776,-500.0,0.00022465,2]
[356007305,1741793456786,-500.0,0.00022465,2]
[356007306,1741793456795,-637.3,0.00022465,2]
[356007307,1741793456804,-500.0,0.00022465,2]
[356007308,1741793456814,-500.0,0.00022465,2]
[356007309,1741793456823,-500.0,0.00022465,2]
[356007310,1741793456832,-547.46,0.00022465,2]
[356007311,1741793456842,-509.94627412,0.00022465,2]
[356007312,1741793456852,-500.0,0.00022465,2]
[356007313,1741793456861,-500.0,0.00022465,2]
[356007314,1741793456871,-500.0,0.00022465,2]
[356007315,1741793456881,-1767.72,0.00022465,2]
[356007316,1741793456890,-1885.65,0.00022465,2]
[356007317,1741793456900,-9180.3,0.00022465,2]
[356007318,1741793456910,-500.0,0.00022465,2]
[356007319,1741793456920,-500.0,0.00022465,2]
[356007320,1741793456930,-817.19,0.00022465,2]
[356007321,1741793456940,-500.0,0.00022465,2]
[356007322,1741793456950,-1976.89,0.00022465,2]
[356007323,1741793456960,-1210.4,0.00022465,2]
[356007324,1741793456970,-1183.55,0.00022465,2]
[356007325,1741793456980,-500.0,0.00022465,2]
[356007326,1741793456989,-729.28,0.00022465,2]
[356007327,1741793456998,-1010.81,0.00022465,2]
[356007328,1741793457008,-500.0,0.00022465,2]
[356007329,1741793457017,-500.0,0.00022465,2]
[356007330,1741793457027,-500.0,0.00022465,2]
[356007331,1741793457036,-769.44,0.00022465,2]
[356007332,1741793457046,-500.0,0.00022465,2]
[356007333,1741793457055,-500.0,0.00022465,2]
[356007334,1741793457064,-819.43,0.00022465,2]
[356007335,1741793457074,-2500.81,0.00022465,2]
[356007336,1741793457083,-500.0,0.00022465,2]
[356007337,1741793457093,-500.0,0.00022465,2]
[356007338,1741793457103,-932.95,0.00022465,2]
[356007339,1741793457113,-500.0,0.00022465,2]
[356007340,1741793457126,-500.0,0.00022465,2]
[356007341,1741793457135,-1150.77,0.00022465,2]
[356007342,1741793457145,-1475.87,0.00022465,2]
[356007343,1741793457157,-1317.48,0.00022465,2]
[356007344,1741793457166,-500.0,0.00022465,2]
[356007345,1741793457176,-1935.28,0.00022465,2]
[356007346,1741793457185,-500.0,0.00022465,2]
[356007347,1741793457196,-500.0,0.00022465,2]
[356007348,1741793457206,-509.3358538,0.00022465,2]
[356007349,1741793457216,-1259.36,0.00022465,2]
[356007350,1741793457226,-500.0,0.00022465,2]
[356007351,1741793457236,-1688.25,0.00022465,2]
[356007352,1741793457246,-2024.05,0.00022465,2]
[356007353,1741793457256,-500.0,0.00022465,2]
[356007354,1741793457265,-1019.14,0.00022465,2]
[356007355,1741793457275,-1435.97,0.00022465,2]
[356007356,1741793457284,-998.45,0.00022465,2]
[356007357,1741793457294,-1379.04,0.00022465,2]
[356007358,1741793457303,-500.0,0.00022465,2]
[356007359,1741793457313,-500.0,0.00022465,2]
[356007360,1741793457322,-500.0,0.00022465,2]
[356007361,1741793457332,-1828.2,0.00022465,2]
[356007362,1741793457341,-500.0,0.00022465,2]
[356007363,1741793457351,-500.0,0.00022465,2]
[356007364,1741793457360,-500.0,0.00022465,2]
[356007365,1741793457370,-29117.98,0.00022465,2]
[356007366,1741793457380,-518.96,0.00022465,2]
[356007367,1741793457390,-500.0,0.00022465,2]
[356007368,1741793457399,-732.87,0.00022465,2]
[356007369,1741793457409,-500.0,0.00022465,2]
[356007370,1741793457418,-500.0,0.00022465,2]
[356007371,1741793457428,-699.35,0.00022465,2]
[356007372,1741793457438,-500.0,0.00022465,2]
[356007373,1741793457448,-5323.54,0.00022465,2]
[356007374,1741793457459,-1802.23,0.00022465,2]
[356007375,1741793457468,-500.0,0.00022465,2]
[356007376,1741793457478,-2894.87,0.00022465,2]
[356007377,1741793457489,-166.9256084,0.00022465,2]
[356007378,1741793457498,-500.0,0.00022465,2]
[356007379,1741793457507,-500.0,0.00022465,2]
[356007380,1741793457516,-1272.02,0.00022465,2]
[356007381,1741793457525,-500.0,0.00022465,2]
[356007382,1741793457535,-536.83,0.00022465,2]
[356007383,1741793457545,-643.6,0.00022465,2]
[356007384,1741793457555,-500.0,0.00022465,2]
[356007385,1741793457564,-500.0,0.00022465,2]
[356007386,1741793457574,-1390.03,0.00022465,2]
[356007387,1741793457583,-1697.13,0.00022465,2]
[356007388,1741793457593,-511.27720669,0.00022465,2]
[356007389,1741793457603,-500.0,0.00022465,2]
[356007390,1741793457612,-500.0,0.00022465,2]
[356007391,1741793457622,-500.0,0.00022465,2]
[356007392,1741793457633,-1665.05,0.00022465,2]
[356007393,1741793457643,-500.0,0.00022465,2]
[356007394,1741793457652,-500.0,0.00022465,2]
[356007395,1741793457662,-4035.55,0.00022465,2]
[356007396,1741793457671,-500.0,0.00022465,2]
[356007397,1741793457681,-17606.95,0.00022465,2]
[356007398,1741793457690,-3269.46,0.00022465,2]
[356007399,1741793457700,-500.0,0.00022465,2]
[356007400,1741793457709,-500.0,0.00022465,2]
[356007401,1741793457719,-1059.74,0.00022465,2]
[356007402,1741793457728,-500.0,0.00022465,2]
[356007403,1741793457740,-1465.71,0.00022465,2]
[356007404,1741793457749,-500.0,0.00022465,2]
[356007405,1741793457759,-552.41,0.00022465,2]
[356007406,1741793457768,-734.16,0.00022465,2]
[356007407,1741793457778,-500.0,0.00022465,2]
[356007408,1741793457787,-859.32,0.00022465,2]
[356007409,1741793457886,-500.0,0.00022465,2]
[356007410,1741793457897,-2406.73,0.00022465,2]
[356007411,1741793457906,-1037.65,0.00022465,2]
[356007412,1741793457916,-553.87,0.00022465,2]
[356007413,1741793457926,-862.64,0.00022465,2]
[356007414,1741793457935,-500.0,0.00022465,2]
[356007415,1741793457945,-500.0,0.00022465,2]
[356007416,1741793457955,-500.0,0.00022465,2]
[356007417,1741793457964,-500.0,0.00022465,2]
[356007418,1741793457973,-1961.85,0.00022465,2]
[356007419,1741793457983,-500.0,0.00022465,2]
[356007420,1741793457994,-500.0,0.00022465,2]
[356007421,1741793458004,-3237.69,0.00022465,2]
[356007422,1741793458013,-1082.88,0.00022465,2]
[356007423,1741793458023,-1883.11,0.00022465,2]
[356007424,1741793458033,-500.0,0.00022465,2]
[356007425,1741793458043,-500.0,0.00022465,2]
[356007426,1741793458053,-1228.14,0.00022465,2]
[356007427,1741793458062,-924.36,0.00022465,2]
[356007428,1741793458072,-2886.09,0.00022465,2]
[356007429,1741793458081,-500.0,0.00022465,2]
[356007430,1741793458091,-500.0,0.00022465,2]
[356007431,1741793458100,-500.0,0.00022465,2]
[356007432,1741793458110,-500.0,0.00022465,2]
[356007433,1741793458123,-1000.0,0.00022465,7]
[356007434,1741793458132,-500.0,0.00022465,2]
[356007435,1741793458142,-500.0,0.00022465,2]
[356007436,1741793458151,-500.0,0.00022465,2]
[356007437,1741793458161,-1251.64,0.00022465,2]
[356007438,1741793458171,-500.0,0.00022465,2]
[356007439,1741793458180,-834.66,0.00022465,2]
[356007440,1741793458191,-1413.63,0.00022465,2]
[356007441,1741793458201,-626.89,0.00022465,2]
[356007442,1741793458211,-1359.76,0.00022465,2]
[356007443,1741793458221,-2270.93,0.00022465,2]
[356007444,1741793458231,-500.0,0.00022465,2]
[356007445,1741793458242,-653.3,0.00022465,2]
[356007446,1741793458252,-514.82135152,0.00022465,2]
[356007447,1741793458262,-1246.26,0.00022465,2]
[356007448,1741793458272,-166.29440643,0.00022465,2]
[356007449,1741793458282,-934.29,0.00022465,2]
[356007450,1741793458292,-1713.43,0.00022465,2]
[356007451,1741793458301,-507.49,0.00022465,2]
[356007452,1741793458311,-500.0,0.00022465,2]
[356007453,1741793458321,-500.0,0.00022465,2]
[356007454,1741793458331,-1097.06,0.00022465,2]
[356007455,1741793458340,-562.39,0.00022465,2]
[356007456,1741793458350,-4254.57,0.00022465,2]
[356007457,1741793458359,-1594.09,0.00022465,2]
[356007458,1741793458369,-500.0,0.00022465,2]
[356007459,1741793458378,-500.0,0.00022465,2]
[356007460,1741793458387,-820.67,0.00022465,2]
[356007461,1741793458397,-214.10958853,0.00022465,2]
[356007462,1741793458407,-500.0,0.00022465,2]
[356007463,1741793458416,-500.0,0.00022465,2]
[356007464,1741793458426,-1726.92,0.00022465,2]
[356007465,1741793458435,-2891.54,0.00022465,2]
[356007466,1741793458444,-434.81598272,0.00022465,2]
[356007467,1741793458454,-355.54030018,0.00022465,2]
[356007468,1741793458463,-500.0,0.00022465,2]
[356007469,1741793458473,-500.0,0.00022465,2]
[356007470,1741793458483,-500.0,0.00022465,2]
[356007471,1741793458494,-3383.01,0.00022465,2]
[356007472,1741793458508,-694.4,0.00022465,2]
[356007473,1741793458532,-524.59,0.00022465,2]
[356007474,1741793458550,-1946.89,0.00022465,2]
[356007475,1741793458572,-500.0,0.00022465,2]
[356007476,1741793458593,-9999.0,0.00022465,2]
[356007477,1741793458614,-500.0,0.00022465,2]
[356007478,1741793458632,-926.52,0.00022465,2]
[356007479,1741793458652,-500.0,0.00022465,2]
[356007480,1741793458667,-222.53599685,0.00022465,2]
[356007481,1741793458684,-150.0,0.00022473,2]
[356007482,1741793458710,-719.17848329,0.00022498,2]
[356007483,1741793458730,-500.0,0.000225,2]
[356007484,1741793458744,-151.0,0.000226,7]
[356007485,1741793458764,-268.11821069,0.00022704,2]
[356007486,1741793458780,-27848.81223885,0.00022739,5]
[356007487,1741793458798,-317.80668087,0.00022739,2]
[356007488,1741793458811,-589.18,0.00022739,2]
[356007489,1741793458828,-770.4,0.00022739,2]
[356007490,1741793458844,-548.9,0.00022739,2]
[356007491,1741793458859,-565.80402665,0.00022739,2]
[356007492,1741793458875,-500.0,0.00022739,2]
[356007493,1741793458891,-763.1,0.00022739,2]
[356007494,1741793458907,-891.72,0.00022739,2]
[356007495,1741793458923,-500.0,0.00022739,2]
[356007496,1741793458940,-500.0,0.00022739,2]
[356007497,1741793458956,-500.34277318,0.00022739,2]
[356007498,1741793458978,-567.07,0.00022739,2]
[356007499,1741793458995,-500.0,0.00022739,2]
[356007500,1741793459012,-500.0,0.00022739,2]
[356007501,1741793459029,-546.65,0.00022739,2]
[356007502,1741793459045,-511.92,0.00022739,2]
[356007503,1741793459060,-562.06,0.00022739,2]
[356007504,1741793459076,-500.0,0.00022739,2]
[356007505,1741793459091,-500.0,0.00022739,2]
[356007506,1741793459106,-500.0,0.00022739,2]
[356007507,1741793459123,-500.0,0.00022739,2]
[356007508,1741793459138,-500.0,0.00022739,2]
[356007509,1741793459153,-500.0,0.00022739,2]
[356007510,1741793459170,-500.0,0.00022739,2]
[356007511,1741793459187,-500.0,0.00022739,2]
[356007512,1741793459203,-515.81,0.00022739,2]
[356007513,1741793459219,-500.0,0.00022739,2]
[356007514,1741793459235,-500.0,0.00022739,2]
[356007515,1741793459251,-500.0,0.00022739,2]
[356007516,1741793459267,-500.0,0.00022739,2]
[356007517,1741793459281,-500.0,0.00022739,2]
[356007518,1741793459296,-500.0,0.00022739,2]
[356007519,1741793459311,-500.0,0.00022739,2]
[356007520,1741793459326,-500.0,0.00022739,2]
[356007521,1741793459341,-500.0,0.00022739,2]
[356007522,1741793459357,-500.0,0.00022739,2]
[356007523,1741793459372,-500.0,0.00022739,2]
[356007524,1741793459388,-500.0,0.00022739,2]
[356007525,1741793459404,-500.0,0.00022739,2]
[356007526,1741793459419,-500.0,0.00022739,2]
[356007527,1741793459434,-500.0,0.00022739,2]
[356007528,1741793459449,-500.0,0.00022739,2]
[356007529,1741793459465,-217.27264363,0.00022739,2]
[356007530,1741793459480,-593.0627324,0.00022739,2]
[356007531,1741793459498,-540.60914616,0.00022739,2]
[356007532,1741793459513,-661.64,0.00022739,2]
[356007533,1741793459529,-500.0,0.00022739,2]
[356007534,1741793459545,-500.0,0.00022739,2]
[356007535,1741793459561,-500.0,0.00022739,2]
[356007536,1741793459704,-500.0,0.00022739,2]
[356007537,1741793459720,-500.0,0.00022739,2]
[356007538,1741793459730,-500.0,0.00022739,2]
[356007539,1741793459742,-504.72440878,0.00022739,2]
[356007540,1741793459752,-500.0,0.00022739,2]
[356007541,1741793459762,-500.0,0.00022739,2]
[356007542,1741793459772,-500.0,0.00022739,2]
[356007543,1741793459782,-500.0,0.00022739,2]
[356007544,1741793459792,-250.61500891,0.00022739,2]
[356007545,1741793459801,-609.8,0.00022739,2]
[356007546,1741793459811,-1131.2,0.00022739,2]
[356007547,1741793459820,-500.0,0.00022739,2]
[356007548,1741793459830,-946.57,0.00022739,2]
[356007549,1741793459839,-500.0,0.00022739,2]
[356007550,1741793459849,-513.70180223,0.00022739,2]
[356007551,1741793459859,-500.0,0.00022739,2]
[356007552,1741793459869,-500.0,0.00022739,2]
[356007553,1741793459879,-826.09,0.00022739,2]
[356007554,1741793459888,-500.0,0.00022739,2]
[356007555,1741793459897,-500.0,0.00022739,2]
[356007556,1741793459907,-500.0,0.00022739,2]
[356007557,1741793459916,-500.0,0.00022739,2]
[356007558,1741793459926,-500.0,0.00022739,2]
[356007559,1741793459935,-161.58520475,0.00022739,2]
[356007560,1741793459946,-500.0,0.00022739,2]
[356007561,1741793459956,-500.0,0.00022739,2]
[356007562,1741793459966,-500.0,0.00022739,2]
[356007563,1741793459976,-500.0,0.00022739,2]
[356007564,1741793459985,-500.0,0.00022739,2]
[356007565,1741793459996,-500.0,0.00022739,2]
[356007566,1741793460006,-606.70015837,0.00022739,2]
[356007567,1741793460016,-511.25787417,0.00022739,2]
[356007568,1741793460026,-500.0,0.00022739,2]
[356007569,1741793460036,-1062.19,0.00022739,2]
[356007570,1741793460047,-500.0,0.00022739,2]
[356007571,1741793460057,-500.0,0.00022739,2]
[356007572,1741793460067,-500.0,0.00022739,2]
[356007573,1741793460078,-500.0,0.00022739,2]
[356007574,1741793460088,-500.0,0.00022739,2]
[356007575,1741793460099,-500.0,0.00022739,2]
[356007576,1741793460109,-500.0,0.00022739,2]
[356007577,1741793460122,-597.21,0.00022739,2]
[356007578,1741793460131,-500.0,0.00022739,2]
[356007579,1741793460141,-874.59,0.00022739,2]
[356007580,1741793460151,-639.77,0.00022739,2]
[356007581,1741793460161,-605.08,0.00022739,5]
[356007582,1741793460170,-500.0,0.00022739,2]
[356007583,1741793460180,-500.0,0.00022739,2]
[356007584,1741793460189,-1294.83,0.00022739,2]
[356007585,1741793460200,-1330.17,0.00022739,2]
[356007586,1741793460210,-500.0,0.00022739,2]
[356007587,1741793460219,-558.38852288,0.00022739,2]
[356007588,1741793460229,-500.0,0.00022739,2]
[356007589,1741793460239,-500.0,0.00022739,2]
[356007590,1741793460251,-500.0,0.00022739,2]
[356007591,1741793460260,-1279.74,0.00022739,2]
[356007592,1741793460270,-500.0,0.00022739,2]
[356007593,1741793460280,-500.0,0.00022739,2]
[356007594,1741793460289,-500.0,0.00022739,2]
[356007595,1741793460298,-500.0,0.00022739,2]
[356007596,1741793460308,-500.0,0.00022739,2]
[356007597,1741793460318,-500.0,0.00022739,2]
[356007598,1741793460328,-500.0,0.00022739,2]
[356007599,1741793460337,-1722.61,0.00022739,2]
[356007600,1741793460347,-500.0,0.00022739,2]
[356007601,1741793460357,-500.0,0.00022739,2]
[356007602,1741793460367,-507.63,0.00022739,2]
[356007603,1741793460377,-527.04,0.00022739,2]
[356007604,1741793460387,-500.0,0.00022739,2]
[356007605,1741793460397,-500.0,0.00022739,2]
[356007606,1741793460407,-500.0,0.00022739,2]
[356007607,1741793460422,-500.0,0.00022739,2]
[356007608,1741793460444,-500.0,0.00022739,2]
[356007609,1741793460463,-500.0,0.00022739,2]
[356007610,1741793460473,-1063.33,0.00022739,2]
[356007611,1741793460483,-500.0,0.00022739,2]
[356007612,1741793460496,-500.0,0.00022739,2]
[356007613,1741793460506,-500.0,0.00022739,2]
[356007614,1741793460516,-500.0,0.00022739,2]
[356007615,1741793460526,-598.68595098,0.00022739,2]
[356007616,1741793460535,-500.0,0.00022739,2]
[356007617,1741793460545,-500.0,0.00022739,2]
[356007618,1741793460555,-500.0,0.00022739,2]
[356007619,1741793460565,-500.0,0.00022739,2]
[356007620,1741793460575,-698.39,0.00022739,2]
[356007621,1741793460588,-500.0,0.00022739,2]
[356007622,1741793460603,-500.0,0.00022739,2]
[356007623,1741793460619,-500.0,0.00022739,2]
[356007624,1741793460632,-500.0,0.00022739,2]
[356007625,1741793460643,-500.0,0.00022739,2]
[356007626,1741793460652,-500.0,0.00022739,2]
[356007627,1741793460662,-500.0,0.00022739,2]
[356007628,1741793460672,-500.0,0.00022739,2]
[356007629,1741793460681,-1346.12,0.00022739,2]
[356007630,1741793460691,-244.09021737,0.00022739,2]
[356007631,1741793460701,-500.0,0.00022739,2]
[356007632,1741793460711,-500.0,0.00022739,2]
[356007633,1741793460721,-500.0,0.00022739,2]
[356007634,1741793460730,-500.0,0.00022739,2]
[356007635,1741793460743,-500.0,0.00022739,2]
[356007636,1741793460753,-500.0,0.00022739,2]
[356007637,1741793460763,-500.0,0.00022739,2]
[356007638,1741793460772,-500.0,0.00022739,2]
[356007639,1741793460783,-500.0,0.00022739,2]
[356007640,1741793460793,-500.0,0.00022739,2]
[356007641,1741793460802,-500.0,0.00022739,2]
[356007642,1741793460813,-500.0,0.00022739,2]
[356007643,1741793460822,-500.0,0.00022739,2]
[356007644,1741793460834,-1073.29,0.00022739,2]
[356007645,1741793460844,-500.0,0.00022739,2]
[356007646,1741793460854,-500.0,0.00022739,2]
[356007647,1741793460863,-500.0,0.00022739,2]
[356007648,1741793460873,-500.0,0.00022739,2]
[356007649,1741793460883,-500.0,0.00022739,2]
[356007650,1741793460893,-1976.23,0.00022739,2]